bitfinex/quotes_SOLUSD_20241213
["timestamp","ask_amount","ask_price","bid_price","bid_amount"]
[1734126150923,0.40147646,223.92,223.81,39.8349739]
[1734126152701,0.40147646,223.92,223.81,30.0]
[1734126154596,0.12549,223.91,223.81,30.0]
[1734126155698,31.1656,223.9,223.81,30.0]
[1734126157115,0.40147646,223.92,223.82,8.40529998]
[1734126157454,0.40147646,223.92,223.83,8.40529998]
[1734126157723,0.40147646,223.92,223.82,8.40529998]
[1734126157926,0.40147646,223.92,223.84,30.0]
[1734126176350,0.40147646,223.92,223.81,8.40529998]
[1734126176552,0.40147646,223.92,223.82,30.0]
[1734126178449,11.1652,223.91,223.78,9.8363772]
[1734126178651,11.1652,223.91,223.79,30.0]
[1734126180249,11.1652,223.91,223.79,38.40529998]
[1734126180451,11.1652,223.91,223.82,8.40529998]
[1734126180662,11.1652,223.91,223.82,38.40529998]
[1734126181153,0.40147646,223.92,223.82,38.40529998]
[1734126181552,0.40147646,223.92,223.82,30.0]
[1734126182133,11.1652,223.91,223.82,30.0]
[1734126182654,11.1652,223.91,223.79,8.40529998]
[1734126184459,11.1652,223.91,223.8,8.40529998]
[1734126184959,11.1652,223.91,223.79,8.40529998]
[1734126185640,11.1652,223.91,223.8,30.0]
[1734126191267,11.1652,223.91,223.79,15.39459116]
[1734126191457,11.1652,223.91,223.8,8.40529998]
[1734126194270,11.1652,223.91,223.82,30.0]
[1734126194650,8.2517,223.89,223.82,30.0]
[1734126194959,8.2517,223.89,223.78,9.8363772]
[1734126195166,0.12549,223.88,223.78,9.8363772]
[1734126195858,11.29259,223.88,223.78,9.8363772]
[1734126196994,0.12549,223.86,223.78,9.8363772]
[1734126197351,1.6369,223.85,223.78,9.8363772]
[1734126198658,11.1686,223.84,223.78,9.8363772]
[1734126204267,6.3438,223.83,223.7,17.17665947]
[1734126204485,11.1696,223.82,223.7,17.17665947]
[1734126204789,0.12549,223.81,223.7,17.17665947]
[1734126205683,0.12549,223.81,223.71,30.0]
[1734126207988,20.0,223.77,223.71,30.0]
[1734126208274,0.12549,223.76,223.69,9.47349312]
[1734126209494,11.1716,223.79,223.69,9.47349312]
[1734126209655,11.1716,223.79,223.7,30.0]
[1734126218180,11.1716,223.79,223.69,9.47349312]
[1734126220178,11.1721,223.77,223.69,9.47349312]
[1734126221189,11.1721,223.77,223.7,30.0]
[1734126221868,11.1731,223.75,223.7,30.0]
[1734126222266,11.1731,223.75,223.69,9.47349312]
[1734126223003,24.027864,223.74,223.69,9.47349312]
[1734126223288,0.12549,223.74,223.61,16.13059998]
[1734126223484,0.12549,223.74,223.63,30.0]
[1734126225287,0.12549,223.74,223.63,38.40529998]
[1734126225482,11.1731,223.75,223.63,38.40529998]
[1734126227387,11.1731,223.75,223.63,30.0]
[1734126229180,1.5242,223.74,223.63,30.0]
[1734126230574,1.5242,223.74,223.63,38.40529998]
[1734126230776,1.5242,223.74,223.63,30.0]
[1734126233475,1.5242,223.74,223.65,8.40529998]
[1734126233678,1.5242,223.74,223.66,30.0]
[1734126235679,0.12549,223.78,223.66,38.40529998]
[1734126237074,1.5954,223.79,223.68,8.40529998]
[1734126237375,1.5954,223.79,223.69,38.40529998]
[1734126237595,1.5954,223.79,223.71,8.40529998]
[1734126237814,1.5954,223.79,223.7,8.40529998]
[1734126238308,1.5954,223.79,223.71,30.0]
[1734126240719,1.5954,223.79,223.71,38.40529998]
[1734126241282,1.5954,223.79,223.71,30.0]
[1734126247985,1.5954,223.79,223.71,38.40529998]
[1734126248394,81.5,223.83,223.71,38.40529998]
[1734126248599,81.5,223.83,223.72,8.40529998]
[1734126248908,81.5,223.83,223.73,30.0]
[1734126250317,1.6521,223.84,223.73,30.0]
[1734126255514,1.6521,223.84,223.72,30.0]
[1734126260408,0.12549,223.81,223.72,30.0]
[1734126260607,0.12549,223.8,223.72,30.0]
[1734126260813,0.25098,223.8,223.72,30.0]
[1734126263517,0.25098,223.8,223.69,30.0]
[1734126265110,20.0,223.82,223.69,38.40529998]
[1734126265518,0.12549,223.81,223.69,38.40529998]
[1734126266506,0.12549,223.81,223.69,30.0]
[1734126267015,0.12549,223.81,223.69,38.40529998]
[1734126270629,0.12549,223.81,223.69,30.0]
[1734126271115,24.027864,223.81,223.69,30.0]
[1734126272125,0.12549,223.79,223.69,30.0]
[1734126275429,0.25098,223.79,223.69,30.0]
[1734126277426,0.25098,223.77,223.64,9.32512583]
[1734126277629,0.25098,223.77,223.66,30.0]
[1734126279717,0.25098,223.77,223.67,8.40529998]
[1734126279931,0.25098,223.77,223.68,30.0]
[1734126280131,11.1716,223.78,223.68,38.40529998]
[1734126283232,11.1716,223.78,223.68,30.0]
[1734126284342,0.12549,223.77,223.68,30.0]
[1734126288541,11.1716,223.78,223.68,38.40529998]
[1734126288748,23.776884,223.81,223.69,8.40529998]
[1734126288749,0.12549,223.79,223.69,8.40529998]
[1734126289136,0.13329454,223.74,223.69,8.40529998]
[1734126290444,0.13329454,223.74,223.7,8.40529998]
[1734126290665,0.13329454,223.74,223.71,8.40529998]
[1734126292168,0.13329454,223.74,223.72,8.40529998]
[1734126292360,0.13329454,223.74,223.72,38.40529998]
[1734126292551,0.13329454,223.74,223.72,30.0]
[1734126294149,0.13329454,223.74,223.72,38.40529998]
[1734126294350,0.13329454,223.74,223.72,30.0]
[1734126296085,0.13329454,223.74,223.72,38.40529998]
[1734126296584,0.13329454,223.74,223.72,8.40529998]
[1734126296888,0.13329454,223.74,223.73,8.40529998]
[1734126297571,0.13329454,223.74,223.72,28.40529998]
[1734126299590,0.13329454,223.74,223.73,30.0]
[1734126303704,0.13329454,223.74,223.65,8.40529998]
[1734126304012,0.13329454,223.74,223.66,30.0]
[1734126305608,0.13329454,223.74,223.66,38.40529998]
[1734126307018,0.13329454,223.74,223.67,8.40529998]
[1734126307310,0.13329454,223.74,223.68,30.0]
[1734126307674,0.13329454,223.74,223.68,38.40529998]
[1734126308968,0.13329454,223.74,223.69,8.40529998]
[1734126309799,0.13329454,223.74,223.68,8.40529998]
[1734126310910,0.13329454,223.74,223.73,8.40529998]
[1734126314327,0.13329454,223.74,223.73,38.40529998]
[1734126317012,0.13329454,223.74,223.73,70.12957398]
[1734126318225,0.13329454,223.74,223.73,70.79973526]
[1734126319925,0.13329454,223.74,223.73,110.14933075]
[1734126320121,1e-08,223.74,223.73,109.73014947]
[1734126320342,1.5605,223.89,223.76,20.0]
[1734126320651,1.5605,223.89,223.78,8.40529998]
[1734126321451,1.5605,223.89,223.78,38.40529998]
[1734126321741,20.0,223.87,223.78,38.40529998]
[1734126322817,0.12549,223.86,223.78,30.0]
[1734126323921,0.12549,223.86,223.76,8.40529998]
[1734126325145,0.12549,223.86,223.73,5.72839557]
[1734126325146,24.027864,223.86,223.75,8.40529998]
[1734126325327,24.027864,223.86,223.76,30.0]
[1734126326951,24.027864,223.86,223.76,38.40529998]
[1734126328154,11.1672,223.87,223.76,38.40529998]
[1734126328155,11.1672,223.87,223.77,8.40529998]
[1734126328334,20.0,223.88,223.79,8.40529998]
[1734126328529,1.5605,223.89,223.8,8.40529998]
[1734126329232,1.5605,223.89,223.82,8.40529998]
[1734126331737,1.5605,223.89,223.82,38.40529998]
[1734126334033,1.5605,223.89,223.82,30.0]
[1734126334537,1.5605,223.89,223.81,8.40529998]
[1734126334953,1.5605,223.89,223.75,8.18834498]
[1734126334954,1.5605,223.89,223.82,8.40529998]
[1734126335558,1.5605,223.89,223.83,8.40529998]
[1734126337131,1.5605,223.89,223.82,8.40529998]
[1734126338756,1.5605,223.89,223.84,8.40529998]
[1734126338956,0.40147646,223.92,223.84,8.40529998]
[1734126339847,0.40147646,223.92,223.84,38.40529998]
[1734126340363,0.40147646,223.92,223.85,8.40529998]
[1734126340952,0.40147646,223.92,223.85,38.40529998]
[1734126343278,0.40147646,223.92,223.85,30.0]
[1734126343770,11.56657646,223.92,223.85,30.0]
[1734126343956,11.56657646,223.92,223.81,8.40529998]
[1734126345449,0.12549,223.89,223.8,20.0]
[1734126345652,0.12549,223.89,223.8,28.40529998]
[1734126345867,11.1656,223.9,223.8,20.0]
[1734126346171,11.1656,223.9,223.82,8.40529998]
[1734126347851,11.1656,223.9,223.83,30.0]
[1734126349452,0.40147646,223.92,223.83,30.0]
[1734126350464,11.1652,223.91,223.83,30.0]
[1734126360954,0.12549,223.88,223.82,30.0]
[1734126361158,1.5035,223.87,223.82,30.0]
[1734126361967,1.5035,223.87,223.75,8.40529998]
[1734126362171,1.5035,223.87,223.77,30.0]
[1734126362473,0.25098,223.86,223.77,30.0]
[1734126362780,24.027864,223.86,223.77,30.0]
[1734126362978,0.12549,223.84,223.77,30.0]
[1734126364664,0.12549,223.84,223.74,30.0]
[1734126365066,0.25098,223.84,223.74,30.0]
[1734126365267,11.29459,223.83,223.74,30.0]
[1734126365678,11.29459,223.83,223.73,10.11318731]
[1734126367082,0.12549,223.82,223.73,10.11318731]
[1734126368080,0.12549,223.79,223.73,10.11318731]
[1734126368285,0.12549,223.79,223.65,13.69609118]
[1734126368588,0.12549,223.79,223.67,38.40529998]
[1734126369690,0.12549,223.79,223.68,8.40529998]
[1734126369862,0.12549,223.79,223.69,30.0]
[1734126370673,0.12549,223.77,223.69,30.0]
[1734126372392,0.12549,223.77,223.67,8.40529998]
[1734126372778,0.25098,223.77,223.66,28.40529998]
[1734126372965,0.25098,223.77,223.67,30.0]
[1734126374694,1.6609,223.74,223.62,23.61786726]
[1734126374863,1.6609,223.74,223.64,30.0]
[1734126375066,0.12549,223.73,223.64,30.0]
[1734126375292,0.25098,223.73,223.64,30.0]
[1734126376800,0.25098,223.71,223.64,30.0]
[1734126377009,0.25098,223.68,223.64,30.0]
[1734126377296,1.5333,223.67,223.64,30.0]
[1734126377470,1.5333,223.67,223.56,8.40529998]
[1734126377696,0.12549,223.66,223.57,30.0]
[1734126378002,0.25098,223.66,223.57,30.0]
[1734126380090,24.027864,223.66,223.57,30.0]
[1734126381395,0.25098,223.64,223.52,14.56458616]
[1734126381605,24.027864,223.64,223.54,30.0]
[1734126385383,0.12549,223.64,223.55,8.40529998]
[1734126385600,0.25098,223.64,223.54,30.0]
[1734126385896,24.027864,223.64,223.54,30.0]
[1734126386394,0.12549,223.64,223.54,38.40529998]
[1734126386588,0.12549,223.64,223.55,8.40529998]
[1734126387871,1.5333,223.67,223.56,8.40529998]
[1734126388076,1.5333,223.67,223.57,8.40529998]
[1734126389093,1.5333,223.67,223.58,30.0]
[1734126389977,24.027864,223.66,223.55,20.0]
[1734126390177,35.205764,223.66,223.55,20.0]
[1734126390380,11.30339,223.66,223.56,8.40529998]
[1734126391681,11.30339,223.66,223.55,20.0]
[1734126391682,1.5333,223.67,223.57,38.40529998]
[1734126392198,1.5333,223.67,223.59,8.40529998]
[1734126393198,1.5333,223.67,223.6,30.0]
[1734126394398,0.12549,223.66,223.55,8.40529998]
[1734126394905,0.12549,223.66,223.57,30.0]
[1734126397909,0.12549,223.66,223.56,30.0]
[1734126398691,0.12549,223.66,223.56,38.40529998]
[1734126400583,0.12549,223.66,223.56,8.40529998]
[1734126403111,0.12549,223.66,223.55,8.40529998]
[1734126403607,0.12549,223.66,223.56,30.0]
[1734126406692,0.12549,223.64,223.56,30.0]
[1734126407414,24.027864,223.64,223.56,30.0]
[1734126408198,24.027864,223.64,223.54,30.0]
[1734126410503,24.027864,223.62,223.54,30.0]
[1734126410814,0.12549,223.6,223.54,30.0]
[1734126411018,0.25098,223.6,223.54,30.0]
[1734126411213,20.0,223.59,223.54,30.0]
[1734126411727,20.0,223.59,223.48,8.40529998]
[1734126412024,20.0,223.59,223.49,30.0]
[1734126412605,20.0,223.59,223.48,8.40529998]
[1734126412921,11.43258,223.58,223.45,20.0]
[1734126413122,11.43258,223.58,223.47,30.0]
[1734126415003,23.776884,223.57,223.47,30.0]
[1734126415314,11.43358,223.56,223.47,30.0]
[1734126418922,11.43358,223.56,223.47,38.40529998]
[1734126420124,20.0,223.59,223.48,8.40529998]
[1734126420309,20.0,223.59,223.5,8.40529998]
[1734126420625,20.0,223.59,223.48,8.40529998]
[1734126420837,20.0,223.59,223.49,8.40529998]
[1734126421025,20.0,223.59,223.48,8.40529998]
[1734126421830,20.0,223.59,223.49,8.40529998]
[1734126422931,20.0,223.59,223.5,30.0]
[1734126425012,0.12549,223.58,223.47,8.40529998]
[1734126425618,0.25098,223.58,223.47,8.40529998]
[1734126425824,0.25098,223.58,223.46,28.40529998]
[1734126426131,11.43308,223.58,223.46,28.40529998]
[1734126428230,11.43308,223.58,223.47,30.0]
[1734126437335,11.43358,223.56,223.47,30.0]
[1734126439029,11.43358,223.56,223.45,30.0]
[1734126439341,11.43358,223.56,223.4,8.40529998]
[1734126439342,0.25098,223.52,223.4,8.40529998]
[1734126440037,20.0,223.51,223.42,30.0]
[1734126440240,0.25098,223.5,223.42,30.0]
[1734126440741,11.43678,223.5,223.42,30.0]
[1734126440947,0.25098,223.48,223.36,8.40529998]
[1734126441146,0.25098,223.48,223.37,30.0]
[1734126442236,0.25098,223.46,223.37,30.0]
[1734126442756,0.25098,223.46,223.35,0.13374754]
[1734126442967,0.25098,223.46,223.35,8.53904752]
[1734126443134,0.12549,223.46,223.37,8.40529998]
[1734126444661,0.12549,223.46,223.38,30.0]
[1734126446386,7.7093,223.49,223.39,8.40529998]
[1734126447487,7.7093,223.49,223.4,8.40529998]
[1734126447669,1.5495,223.49,223.41,8.40529998]
[1734126447872,1.5495,223.49,223.38,30.0]
[1734126447873,1.5495,223.49,223.43,8.40529998]
[1734126448176,7.7368,223.54,223.43,8.40529998]
[1734126448474,0.12549,223.53,223.43,8.40529998]
[1734126449760,0.12549,223.53,223.42,8.40529998]
[1734126450065,0.12549,223.53,223.43,30.0]
[1734126450446,0.12549,223.53,223.43,38.40529998]
[1734126452800,7.7368,223.54,223.44,8.40529998]
[1734126454491,7.7368,223.54,223.43,38.40529998]
[1734126456255,7.7368,223.54,223.45,8.40529998]
[1734126456256,1.6391,223.54,223.45,8.40529998]
[1734126456461,1.6391,223.54,223.45,38.40529998]
[1734126456667,1.6391,223.54,223.46,32.18218398]
[1734126456862,1.6391,223.54,223.47,8.40529998]
[1734126457268,1.6391,223.54,223.46,32.18218398]
[1734126457468,1.6391,223.54,223.47,30.0]
[1734126458863,1.16696822,223.54,223.47,30.0]
[1734126459968,11.1817,223.58,223.47,30.0]
[1734126461995,12.8162,223.58,223.47,30.0]
[1734126464987,0.25098,223.57,223.47,30.0]
[1734126465190,11.1826,223.56,223.47,30.0]
[1734126483616,11.1826,223.56,223.47,38.40529998]
[1734126484993,1.6345,223.58,223.48,23.776884]
[1734126485199,1.6345,223.58,223.48,62.18218398]
[1734126485818,1.6345,223.58,223.48,53.776884]
[1734126487514,1.6345,223.58,223.48,62.18218398]
[1734126487708,1.6345,223.58,223.5,8.40529998]
[1734126487918,1.6345,223.58,223.5,30.0]
[1734126490549,1.6345,223.58,223.5,38.40529998]
[1734126492433,1.6345,223.58,223.5,30.0]
[1734126497718,1.5499,223.63,223.52,8.40529998]
[1734126497915,1.5499,223.63,223.52,38.40529998]
[1734126498113,1.5499,223.63,223.53,8.40529998]
[1734126498907,1.5499,223.63,223.53,38.40529998]
[1734126499105,1.5499,223.63,223.54,32.18218398]
[1734126499913,1.5499,223.63,223.54,53.776884]
[1734126502720,1.5499,223.63,223.54,62.18218398]
[1734126503524,1.5499,223.63,223.54,53.776884]
[1734126504035,1.5499,223.63,223.54,30.0]
[1734126504036,11.1796,223.62,223.54,30.0]
[1734126509938,1.5499,223.63,223.54,30.0]
[1734126509939,1.5499,223.63,223.54,38.40529998]
[1734126510937,1.5499,223.63,223.55,32.18218398]
[1734126511147,11.1778,223.66,223.56,8.40529998]
[1734126512015,11.1778,223.66,223.56,38.40529998]
[1734126512639,11.1778,223.66,223.56,30.0]
[1734126513423,12.7057,223.69,223.58,8.40529998]
[1734126514028,12.7057,223.69,223.58,38.40529998]
[1734126514829,12.7057,223.69,223.58,30.0]
[1734126521041,11.1771,223.67,223.58,30.0]
[1734126529857,11.1771,223.67,223.56,30.0]
[1734126532391,11.1771,223.67,223.56,38.40529998]
[1734126532681,1.5296,223.69,223.58,8.40529998]
[1734126532898,1.5296,223.69,223.58,38.40529998]
[1734126533771,1.5296,223.69,223.58,30.0]
[1734126534575,1.5296,223.69,223.58,38.40529998]
[1734126537287,1.5296,223.69,223.59,8.40529998]
[1734126537481,1.5296,223.69,223.6,8.40529998]
[1734126538469,1.5296,223.69,223.6,38.40529998]
[1734126542282,1.5296,223.69,223.6,30.0]
[1734126545900,1.5296,223.69,223.6,38.40529998]
[1734126551190,1.5296,223.69,223.6,30.0]
[1734126551390,1.5296,223.69,223.6,38.40529998]
[1734126553009,1.5296,223.69,223.61,8.40529998]
[1734126553193,11.174,223.74,223.64,8.40529998]
[1734126554308,11.174,223.74,223.64,38.40529998]
[1734126554499,1.6005,223.75,223.65,8.40529998]
[1734126554991,1.6005,223.75,223.66,8.40529998]
[1734126555189,1.6005,223.75,223.66,38.40529998]
[1734126556486,1.6005,223.75,223.69,8.40529998]
[1734126556687,1.5178,223.8,223.69,38.40529998]
[1734126557892,1.5178,223.8,223.69,30.0]
[1734126558486,11.1711,223.79,223.69,30.0]
[1734126562687,11.1711,223.79,223.68,8.40529998]
[1734126562891,11.1711,223.79,223.69,8.40529998]
[1734126563499,11.1711,223.79,223.68,8.40529998]
[1734126565013,11.1711,223.79,223.67,8.40529998]
[1734126565218,11.1711,223.79,223.68,32.18218398]
[1734126565928,11.1711,223.79,223.69,30.0]
[1734126567210,11.1711,223.79,223.69,38.40529998]
[1734126567607,11.1711,223.79,223.69,30.0]
[1734126571799,0.25098,223.78,223.69,30.0]
[1734126572007,11.1721,223.77,223.69,30.0]
[1734126576921,11.1721,223.77,223.66,8.40529998]
[1734126579932,11.1721,223.77,223.68,30.0]
[1734126585123,11.1731,223.75,223.68,30.0]
[1734126600367,0.12549,223.78,223.68,30.0]
[1734126600534,11.29719,223.78,223.68,30.0]
[1734126603026,11.1717,223.78,223.68,38.40529998]
[1734126605733,11.1717,223.78,223.69,8.40529998]
[1734126605933,11.1717,223.78,223.69,38.40529998]
[1734126609053,11.1717,223.78,223.69,30.0]
[1734126612363,11.1726,223.76,223.69,30.0]
[1734126615663,11.1736,223.74,223.69,30.0]
[1734126622427,0.12549,223.73,223.69,30.0]
[1734126623322,11.1746,223.72,223.69,30.0]
[1734126623987,0.12549,223.71,223.64,11.50637383]
[1734126624190,0.12549,223.71,223.57,14.13333487]
[1734126625327,11.1756,223.7,223.57,14.13333487]
[1734126627308,11.1756,223.7,223.57,8.40529998]
[1734126627819,11.1756,223.7,223.58,30.0]
[1734126628023,11.1766,223.68,223.58,30.0]
[1734126632357,11.1766,223.68,223.58,38.40529998]
[1734126635255,11.1766,223.68,223.58,8.40529998]
[1734126639133,11.1766,223.68,223.59,30.0]
[1734126639338,12.8215,223.68,223.59,30.0]
[1734126655306,12.8215,223.68,223.6,8.40529998]
[1734126655507,11.1752,223.71,223.61,8.40529998]
[1734126655899,11.1752,223.71,223.62,8.40529998]
[1734126657225,11.1752,223.71,223.63,8.40529998]
[1734126658401,11.1752,223.71,223.64,38.40529998]
[1734126660325,11.1752,223.71,223.64,30.0]
[1734126661135,20.0,223.68,223.64,30.0]
[1734126663136,11.1752,223.71,223.64,30.0]
[1734126663329,11.1752,223.71,223.61,8.40529998]
[1734126664826,11.1752,223.71,223.62,8.40529998]
[1734126665406,11.1752,223.71,223.58,0.67054219]
[1734126665407,20.0,223.72,223.63,8.40529998]
[1734126665606,20.0,223.72,223.59,24.027864]
[1734126665803,20.0,223.72,223.62,8.40529998]
[1734126666930,20.0,223.72,223.63,30.0]
[1734126668119,20.0,223.72,223.62,8.40529998]
[1734126669409,20.0,223.72,223.61,8.40529998]
[1734126669610,20.0,223.72,223.62,23.776884]
[1734126672935,20.0,223.72,223.63,30.0]
[1734126673824,20.0,223.72,223.63,38.40529998]
[1734126676136,11.1736,223.75,223.65,8.40529998]
[1734126676339,11.1736,223.75,223.66,8.40529998]
[1734126676725,11.1736,223.75,223.65,8.40529998]
[1734126677114,20.0,223.76,223.65,8.40529998]
[1734126677432,20.0,223.75,223.64,32.85267965]
[1734126677918,20.0,223.75,223.65,30.0]
[1734126678117,20.0,223.75,223.65,38.40529998]
[1734126679322,20.0,223.76,223.65,38.40529998]
[1734126679532,11.1732,223.75,223.65,30.0]
[1734126680858,11.1732,223.75,223.65,38.40529998]
[1734126681027,11.1732,223.75,223.66,8.40529998]
[1734126681228,11.1732,223.75,223.67,30.0]
[1734126690833,11.1732,223.75,223.63,23.776884]
[1734126691035,11.1732,223.75,223.64,30.0]
[1734126692054,11.1732,223.75,223.63,32.18218398]
[1734126692649,11.1732,223.75,223.63,23.776884]
[1734126692871,11.1746,223.73,223.63,23.776884]
[1734126695047,11.1746,223.73,223.64,30.0]
[1734126697256,12.6885,223.73,223.64,30.0]
[1734126697461,20.0,223.7,223.64,30.0]
[1734126697649,20.0,223.7,223.58,19.20111088]
[1734126697960,20.0,223.7,223.6,30.0]
[1734126698764,11.1761,223.69,223.6,30.0]
[1734126700759,11.1761,223.69,223.59,30.0]
[1734126707463,20.0,223.7,223.6,32.18218398]
[1734126709153,20.0,223.7,223.61,8.40529998]
[1734126709852,20.0,223.7,223.62,30.0]
[1734126710054,20.0,223.7,223.63,32.18218398]
[1734126710647,20.0,223.7,223.64,8.40529998]
[1734126710841,12.6885,223.73,223.63,23.776884]
[1734126710842,12.6885,223.73,223.65,8.40529998]
[1734126711256,12.6885,223.73,223.65,23.776884]
[1734126711881,11.1746,223.73,223.65,23.776884]
[1734126712167,20.0,223.74,223.65,23.776884]
[1734126712346,20.0,223.74,223.65,8.40529998]
[1734126714156,20.0,223.74,223.65,23.776884]
[1734126714549,20.0,223.74,223.65,32.18218398]
[1734126715144,20.0,223.74,223.66,30.0]
[1734126720361,11.1736,223.75,223.66,30.0]
[1734126723355,11.1736,223.75,223.61,30.0]
[1734126723652,11.1741,223.73,223.62,23.776884]
[1734126724579,11.1741,223.73,223.63,30.0]
[1734126725859,20.0,223.7,223.63,30.0]
[1734126727168,20.0,223.7,223.6,23.902374]
[1734126727354,20.0,223.7,223.6,53.902374]
[1734126727871,20.0,223.7,223.6,23.902374]
[1734126728700,20.0,223.7,223.58,30.43795641]
[1734126728701,0.12549,223.69,223.56,17.90799768]
[1734126729554,20.12549,223.69,223.56,26.31329766]
[1734126729766,11.1766,223.68,223.56,26.31329766]
[1734126729956,11.1766,223.68,223.58,23.776884]
[1734126730875,11.1766,223.68,223.6,30.0]
[1734126742886,20.0,223.65,223.6,30.0]
[1734126747192,11.1766,223.68,223.6,30.0]
[1734126747874,20.0,223.65,223.57,23.776884]
[1734126749767,1.6337,223.7,223.6,23.776884]
[1734126749978,20.0,223.69,223.6,32.18218398]
[1734126750176,92.6751,223.72,223.6,32.18218398]
[1734126750381,92.6751,223.72,223.6,23.776884]
[1734126751086,92.6751,223.72,223.59,23.776884]
[1734126751282,92.6751,223.72,223.61,23.776884]
[1734126752295,11.1751,223.72,223.61,23.776884]
[1734126752496,11.1751,223.72,223.62,30.0]
[1734126766600,11.1751,223.72,223.63,23.776884]
[1734126767010,20.0,223.72,223.63,32.85270196]
[1734126768217,20.0,223.72,223.65,23.776884]
[1734126771049,20.0,223.72,223.63,23.902374]
[1734126772704,11.1746,223.73,223.6,9.0757679]
[1734126772909,11.1746,223.73,223.61,23.776884]
[1734126773111,11.1746,223.73,223.62,0.12549]
[1734126776021,11.1746,223.73,223.63,23.776884]
[1734126776906,11.1746,223.73,223.65,23.776884]
[1734126783818,11.1746,223.73,223.64,30.0]
[1734126784325,11.1746,223.73,223.6,8.40529998]
[1734126784523,11.1746,223.73,223.61,23.776884]
[1734126785326,11.1746,223.73,223.63,23.776884]
[1734126786610,11.1746,223.73,223.64,30.0]
[1734126788132,11.1746,223.73,223.61,23.776884]
[1734126788716,11.1746,223.73,223.62,0.6705706]
[1734126789032,11.1746,223.73,223.63,23.776884]
[1734126791513,11.1746,223.73,223.64,30.0]
[1734126792618,11.1746,223.73,223.63,23.776884]
[1734126793125,11.1746,223.73,223.61,23.902374]
[1734126793435,11.1746,223.73,223.59,23.776884]
[1734126793735,20.0,223.7,223.59,23.776884]
[1734126793935,20.0,223.7,223.58,23.776884]
[1734126794838,12.6931,223.69,223.58,23.776884]
[1734126795538,12.6931,223.69,223.6,23.776884]
[1734126807132,11.1761,223.69,223.62,8.40529998]
[1734126807352,11.1747,223.72,223.63,23.776884]
[1734126808647,11.1747,223.72,223.62,23.776884]
[1734126810229,11.1747,223.72,223.64,32.18218398]
[1734126810571,19.369,223.75,223.65,32.18218398]
[1734126810861,19.369,223.75,223.65,23.776884]
[1734126811022,19.369,223.75,223.66,30.0]
[1734126811227,12.833,223.75,223.67,23.776884]
[1734126812151,12.833,223.75,223.67,53.776884]
[1734126812641,12.833,223.75,223.67,23.776884]
[1734126813738,12.833,223.75,223.63,0.12549]
[1734126813739,12.833,223.75,223.65,23.902374]
[1734126814053,12.833,223.75,223.66,23.776884]
[1734126815844,12.833,223.75,223.67,30.0]
[1734126816066,12.833,223.75,223.68,23.776884]
[1734126818043,12.833,223.75,223.67,30.0]
[1734126820063,12.833,223.75,223.65,23.776884]
[1734126820954,12.833,223.75,223.66,30.0]
[1734126821967,31.1751,223.72,223.66,30.0]
[1734126823747,31.1751,223.72,223.62,23.776884]
[1734126824979,31.1751,223.72,223.63,30.0]
[1734126827137,31.1751,223.72,223.62,23.776884]
[1734126827466,31.1751,223.72,223.61,23.776884]
[1734126827644,31.1751,223.72,223.63,23.776884]
[1734126838000,31.1751,223.72,223.63,32.18218398]
[1734126838383,12.833,223.75,223.66,23.776884]
[1734126839082,12.833,223.75,223.65,23.776884]
[1734126839280,12.833,223.75,223.65,32.18218398]
[1734126839889,12.833,223.75,223.67,23.776884]
[1734126847911,0.12549,223.69,223.56,7.00850855]